fUSD/lending_fUSD_20250514
["ID","MTS","AMOUNT","RATE_DAILY","PERIOD"]
[361082022,1747237848364,-151.0,0.00011232,2]
[361082023,1747237848374,-400.0,0.00011232,2]
[361082024,1747237848384,-1258.75,0.00011232,2]
[361082025,1747237848393,-262.78816408,0.00011232,2]
[361082026,1747237848405,-400.0,0.00011232,2]
[361082027,1747237848414,-151.0,0.00011232,2]
[361082028,1747237848424,-400.0,0.00011232,2]
[361082029,1747237848434,-1488.55,0.00011232,2]
[361082030,1747237848444,-400.0,0.00011232,2]
[361082031,1747237848453,-400.0,0.00011232,2]
[361082032,1747237848463,-250.0,0.00011232,2]
[361082033,1747237848473,-400.0,0.00011232,2]
[361082034,1747237848740,-400.0,0.00011232,2]
[361082035,1747237848751,-187.545929,0.00011232,2]
[361082036,1747237848761,-400.0,0.00011232,2]
[361082037,1747237848771,-750.93,0.00011232,2]
[361082038,1747237848780,-187.545929,0.00011232,2]
[361082039,1747237848790,-676.27,0.00011232,2]
[361082040,1747237848800,-3660.52,0.00011232,2]
[361082041,1747237848810,-696.09,0.00011232,2]
[361082042,1747237848819,-400.0,0.00011232,2]
[361082043,1747237848829,-179.40453,0.00011232,2]
[361082044,1747237848839,-1076.82,0.00011232,2]
[361082045,1747237848848,-400.0,0.00011232,2]
[361082046,1747237848857,-558.98,0.00011232,2]
[361082047,1747237848867,-179.40453,0.00011232,2]
[361082048,1747237848876,-751.5,0.00011232,2]
[361082049,1747237848885,-838.92,0.00011232,2]
[361082050,1747237848894,-400.0,0.00011232,2]
[361082051,1747237848904,-400.0,0.00011232,2]
[361082052,1747237848913,-658.53,0.00011232,2]
[361082053,1747237848923,-1453.6,0.00011232,2]
[361082054,1747237848932,-541.36,0.00011232,2]
[361082055,1747237848941,-400.0,0.00011232,2]
[361082056,1747237848950,-151.0,0.00011232,2]
[361082057,1747237848960,-151.0,0.00011232,2]
[361082058,1747237848969,-400.0,0.00011232,2]
[361082059,1747237848978,-151.0,0.00011232,2]
[361082060,1747237848988,-400.0,0.00011232,2]
[361082061,1747237848998,-1025.04,0.00011232,2]
[361082062,1747237849007,-400.0,0.00011232,2]
[361082063,1747237849017,-400.0,0.00011232,2]
[361082064,1747237849026,-400.0,0.00011232,2]
[361082065,1747237849035,-7508.48,0.00011232,2]
[361082066,1747237849045,-531.51,0.00011232,2]
[361082067,1747237849055,-676.77,0.00011232,2]
[361082068,1747237849064,-642.17,0.00011232,2]
[361082069,1747237849074,-400.0,0.00011232,2]
[361082070,1747237849083,-400.0,0.00011232,2]
[361082071,1747237849092,-1043.09,0.00011232,2]
[361082072,1747237849102,-964.73,0.00011232,2]
[361082073,1747237849111,-400.0,0.00011232,2]
[361082074,1747237849120,-400.0,0.00011232,2]
[361082075,1747237849130,-400.0,0.00011232,2]
[361082076,1747237849139,-400.0,0.00011232,2]
[361082077,1747237849148,-1466.04,0.00011232,2]
[361082078,1747237849158,-151.0,0.00011232,2]
[361082079,1747237849167,-400.0,0.00011232,2]
[361082080,1747237849176,-905.00845447,0.00011232,2]
[361082081,1747237849193,-473.67154553,0.00011232,2]
[361082082,1747237849202,-558.28,0.00011232,2]
[361082083,1747237849212,-400.0,0.00011232,2]
[361082084,1747237849221,-758.85,0.00011232,2]
[361082085,1747237849230,-1126.27,0.00011232,2]
[361082086,1747237849244,-1531.97,0.00011232,2]
[361082087,1747237849254,-5413.88,0.00011232,2]
[361082088,1747237849264,-400.0,0.00011232,2]
[361082089,1747237849274,-151.0,0.00011232,2]
[361082090,1747237849285,-475.32,0.00011232,2]
[361082091,1747237849295,-604.01,0.00011232,2]
[361082092,1747237849305,-151.0,0.00011232,2]
[361082093,1747237849315,-710.95,0.00011232,2]
[361082094,1747237849324,-845.67,0.00011232,2]
[361082095,1747237849334,-400.0,0.00011232,2]
[361082096,1747237849344,-2563.44,0.00011232,2]
[361082097,1747237849354,-400.0,0.00011232,2]
[361082098,1747237849364,-2923.73965437,0.00011232,2]
[361082099,1747237849376,-997.48,0.00011232,2]
[361082100,1747237849396,-8178.46034563,0.00011232,2]
[361082101,1747237849406,-400.0,0.00011232,2]
[361082102,1747237849416,-468.18,0.00011232,2]
[361082103,1747237849426,-727.9,0.00011232,2]
[361082104,1747237849436,-400.0,0.00011232,2]
[361082105,1747237849446,-400.0,0.00011232,2]
[361082106,1747237849457,-470.83,0.00011232,2]
[361082107,1747237849468,-2161.46,0.00011232,2]
[361082108,1747237849478,-400.0,0.00011232,2]
[361082109,1747237849487,-400.0,0.00011232,2]
[361082110,1747237849498,-1917.62,0.00011232,2]
[361082111,1747237849508,-400.0,0.00011232,2]
[361082112,1747237849518,-1898.1,0.00011232,2]
[361082113,1747237849528,-400.0,0.00011232,2]
[361082114,1747237849539,-400.0,0.00011232,2]
[361082115,1747237849549,-506.62,0.00011232,2]
[361082116,1747237849559,-1039.3,0.00011232,2]
[361082117,1747237849569,-151.0,0.00011232,2]
[361082118,1747237849579,-151.0,0.00011232,2]
[361082119,1747237849589,-1221.01,0.00011232,2]
[361082120,1747237849599,-521.08,0.00011232,2]
[361082121,1747237849611,-167.1231,0.00011232,2]
[361082122,1747237849622,-2031.05,0.00011232,2]
[361082123,1747237849631,-400.0,0.00011232,2]
[361082124,1747237849641,-471.89,0.00011232,2]
[361082125,1747237849652,-13823.26,0.00011232,2]
[361082126,1747237849663,-167.1231,0.00011232,2]
[361082127,1747237849673,-448.84,0.00011232,2]
[361082128,1747237849683,-1543.79,0.00011232,2]
[361082129,1747237849693,-400.0,0.00011232,2]
[361082130,1747237849703,-400.0,0.00011232,2]
[361082131,1747237849713,-400.0,0.00011232,2]
[361082132,1747237849722,-195.150105,0.00011232,2]
[361082133,1747237849732,-1051.87,0.00011232,2]
[361082134,1747237849741,-400.0,0.00011232,2]
[361082135,1747237849751,-400.0,0.00011232,2]
[361082136,1747237849761,-1106.06,0.00011232,2]
[361082137,1747237849770,-195.150105,0.00011232,2]
[361082138,1747237849781,-400.0,0.00011232,2]
[361082139,1747237849791,-400.0,0.00011232,2]
[361082140,1747237849802,-420.15511668,0.00011232,2]
[361082141,1747237849812,-1772.94,0.00011232,2]
[361082142,1747237849821,-151.0,0.00011232,2]
[361082143,1747237849831,-10992.83,0.00011232,2]
[361082144,1747237849843,-151.0,0.00011232,2]
[361082145,1747237849853,-400.0,0.00011232,2]
[361082146,1747237849863,-400.0,0.00011232,2]
[361082147,1747237849873,-3880.61,0.00011232,2]
[361082148,1747237849883,-400.0,0.00011232,2]
[361082149,1747237849893,-591.98,0.00011232,2]
[361082150,1747237849904,-151.0,0.00011232,2]
[361082151,1747237849915,-151.0,0.00011232,2]
[361082152,1747237849925,-400.0,0.00011232,2]
[361082153,1747237849937,-400.0,0.00011232,2]
[361082154,1747237849947,-2823.6,0.00011232,2]
[361082155,1747237849957,-400.0,0.00011232,2]
[361082156,1747237849967,-780.36,0.00011232,2]
[361082157,1747237849977,-400.0,0.00011232,2]
[361082158,1747237849987,-560.98,0.00011232,2]
[361082159,1747237849998,-4977.72,0.00011232,2]
[361082160,1747237850008,-400.0,0.00011232,2]
[361082161,1747237850017,-585.1,0.00011232,2]
[361082162,1747237850028,-436.67,0.00011232,2]
[361082163,1747237850037,-423.19,0.00011232,2]
[361082164,1747237850048,-400.0,0.00011232,2]
[361082165,1747237850058,-1118.79,0.00011232,2]
[361082166,1747237850068,-400.0,0.00011232,2]
[361082167,1747237850079,-400.0,0.00011232,2]
[361082168,1747237850088,-630.8,0.00011232,2]
[361082169,1747237850098,-461.76,0.00011232,2]
[361082170,1747237850108,-441.44,0.00011232,2]
[361082171,1747237850118,-960.34,0.00011232,2]
[361082172,1747237850127,-400.0,0.00011232,2]
[361082173,1747237850138,-400.0,0.00011232,2]
[361082174,1747237850148,-3205.98,0.00011232,2]
[361082175,1747237850158,-561.07,0.00011232,2]
[361082176,1747237850168,-202.71431066,0.00011232,2]
[361082177,1747237850178,-151.0,0.00011232,2]
[361082178,1747237850189,-151.0,0.00011232,2]
[361082179,1747237850199,-400.0,0.00011232,2]
[361082180,1747237850210,-562.76,0.00011232,2]
[361082181,1747237850220,-400.0,0.00011232,2]
[361082182,1747237850230,-406.58,0.00011232,2]
[361082183,1747237850241,-670.88,0.00011232,2]
[361082184,1747237850251,-400.0,0.00011232,2]
[361082185,1747237850262,-509.9593384,0.00011232,2]
[361082186,1747237850272,-400.0,0.00011232,2]
[361082187,1747237850282,-837.04,0.00011232,2]
[361082188,1747237850293,-601.17,0.00011232,2]
[361082189,1747237850303,-400.0,0.00011232,2]
[361082190,1747237850314,-400.0,0.00011232,2]
[361082191,1747237850324,-400.0,0.00011232,2]
[361082192,1747237850335,-400.0,0.00011232,2]
[361082193,1747237850344,-400.0,0.00011232,2]
[361082194,1747237850354,-151.0,0.00011232,2]
[361082195,1747237850364,-400.0,0.00011232,2]
[361082196,1747237850374,-151.0,0.00011232,2]
[361082197,1747237850384,-151.0,0.00011232,2]
[361082198,1747237850393,-248.589713,0.00011232,2]
[361082199,1747237850405,-248.589713,0.00011232,2]
[361082200,1747237850415,-895.517782,0.00011232,2]
[361082201,1747237850425,-846.16,0.00011232,2]
[361082202,1747237850435,-895.517782,0.00011232,2]
[361082203,1747237850444,-515.36,0.00011232,2]
[361082204,1747237850454,-9214.3,0.00011232,2]
[361082205,1747237850463,-400.0,0.00011232,2]
[361082206,1747237850474,-400.0,0.00011232,2]
[361082207,1747237850484,-895.517782,0.00011232,2]
[361082208,1747237850493,-248.589713,0.00011232,2]
[361082209,1747237850504,-895.517782,0.00011232,2]
[361082210,1747237850514,-400.0,0.00011232,2]
[361082211,1747237850524,-248.589713,0.00011232,2]
[361082212,1747237850535,-6671.5,0.00011232,2]
[361082213,1747237850545,-151.0,0.00011232,2]
[361082214,1747237850556,-683.25,0.00011232,2]
[361082215,1747237850566,-400.0,0.00011232,2]
[361082216,1747237850575,-2231.64,0.00011232,2]
[361082217,1747237850585,-655.8,0.00011232,2]
[361082218,1747237850596,-842.38,0.00011232,2]
[361082219,1747237850607,-400.0,0.00011232,2]
[361082220,1747237850622,-151.0,0.00011232,2]
[361082221,1747237850631,-151.0,0.00011232,2]
[361082222,1747237850640,-23363.29093116,0.00011232,2]
[361082223,1747237850656,-4174.95475469,0.00011232,2]
[361082224,1747237850754,-898.29994,0.00011232,2]
[361082225,1747237850778,-35177.94437415,0.00011232,2]
[361082226,1747237850788,-7972.45,0.00011232,2]
[361082227,1747237850798,-400.0,0.00011232,2]
[361082228,1747237850807,-519.97,0.00011232,2]
[361082229,1747237850817,-400.0,0.00011232,2]
[361082230,1747237850827,-400.0,0.00011232,2]
[361082231,1747237850837,-1261.92,0.00011232,2]
[361082232,1747237850847,-1467.1,0.00011232,2]
[361082233,1747237850857,-1021.51,0.00011232,2]
[361082234,1747237850867,-3298.56473365,0.00011232,2]
[361082235,1747237850901,-400.0,0.00010958,2]
[361082236,1747237850911,-2286.41,0.00011232,2]
[361082237,1747237973414,161.78,9.831e-05,2]
[361082238,1747238027730,3765.56,0.00025,60]
[361082239,1747238054304,535.29,9.831e-05,2]
[361082241,1747238192456,941.38,0.00025,60]
[361082242,1747238223066,-267.30138976,9.936e-05,2]
[361082244,1747238230008,-32.69861024,9.936e-05,2]
[361082245,1747238230032,-133.22397354,9.936e-05,2]
[361082246,1747238239294,-166.77602646,9.936e-05,2]
[361082247,1747238239319,-0.63823648,9.936e-05,2]
[361082248,1747238240813,-149.36176352,9.936e-05,2]
[361082249,1747238313126,-198.41829666,9.936e-05,2]
[361082250,1747238319124,-280.36607796,9.936e-05,2]
[361082251,1747238402915,-251.2593716,9.935e-05,2]
[361082252,1747238407747,-177.7386183,9.935e-05,2]
[361082253,1747238411626,-206.38190142,9.935e-05,2]
[361082254,1747238416664,-159.04601172,9.935e-05,2]
[361082255,1747238422623,-173.15398828,9.935e-05,2]
[361082256,1747238424286,-185.4691031,9.935e-05,2]
[361082257,1747238432223,-46.95100558,9.935e-05,2]
[361082258,1747238432246,-150.0,9.935e-05,2]
[361082259,1747238432270,-66.44430473,9.935e-05,2]
[361082260,1747238438589,-167.41426294,9.935e-05,2]
[361082261,1747238442460,-66.14143233,9.935e-05,2]
[361082262,1747238530283,150.0,0.00010089,7]
[361082263,1747238551819,1000.0,9.569e-05,2]
[361082264,1747238551865,1000.0,9.731e-05,2]
[361082265,1747238551998,1000.0,9.589e-05,2]
[361082266,1747238552037,1000.0,9.199e-05,2]
[361082267,1747238552180,1000.0,9.028e-05,2]
[361082268,1747238782692,2870.06,9.647e-05,2]
[361082269,1747238852013,1000.0,8.708e-05,2]
[361082270,1747238852066,1000.0,7.937e-05,2]
[361082271,1747238904351,2022.26,9.608e-05,2]
[361082274,1747238983015,653.84,8.219e-05,2]
[361082275,1747239025731,200.0,9.599e-05,2]
[361082279,1747239032020,-500.0,9.955e-05,2]
[361082280,1747239032031,-1.36406778,9.981e-05,2]
[361082281,1747239032052,-165.66593222,9.981e-05,2]
[361082282,1747239032061,-450.0,0.0001,2]
[361082283,1747239032074,-333.72137723,0.0001,2]
[361082284,1747239032083,-2112.33,0.00010017,2]
[361082285,1747239032093,-1000.0,0.00010058,2]
[361082286,1747239032104,-181.09,0.00010065,2]
[361082287,1747239032115,-745.03,0.00010101,2]
[361082288,1747239032125,-300.0,0.00010159,2]
[361082289,1747239032135,-1200.0,0.00010159,2]
[361082290,1747239032145,-300.0,0.00010159,2]
[361082291,1747239032155,-208.67410497,0.0001016,2]
[361082292,1747239032164,-500.0,0.0001016,2]
[361082293,1747239032174,-500.0,0.0001016,2]
[361082294,1747239032183,-500.0,0.0001016,2]
[361082295,1747239032192,-500.0,0.0001016,2]
[361082296,1747239032201,-500.0,0.0001016,2]
[361082297,1747239032211,-500.0,0.0001016,2]
[361082298,1747239032220,-500.0,0.0001016,2]
[361082299,1747239032229,-367.68804318,0.0001016,2]
[361082300,1747239032239,-500.0,0.0001016,2]
[361082301,1747239032247,-199.53797842,0.0001016,2]
[361082302,1747239032257,-500.0,0.0001016,2]
[361082303,1747239032267,-500.0,0.0001016,2]
[361082305,1747239032276,-500.0,0.0001016,2]
[361082306,1747239032286,-500.0,0.0001016,2]
[361082307,1747239032295,-401.11627441,0.0001016,2]
[361082308,1747239032305,-500.0,0.0001016,2]
[361082309,1747239032315,-500.0,0.0001016,2]
[361082310,1747239032324,-500.0,0.0001016,2]
[361082311,1747239032333,-500.0,0.0001016,2]
[361082312,1747239032343,-500.0,0.0001016,2]
[361082313,1747239032352,-500.0,0.0001016,2]
[361082314,1747239032361,-500.0,0.0001016,2]
[361082315,1747239032371,-500.0,0.0001016,2]
[361082316,1747239032382,-500.0,0.0001016,2]
[361082317,1747239032392,-500.0,0.0001016,2]
[361082318,1747239032403,-500.0,0.0001016,2]
[361082319,1747239032414,-500.0,0.0001016,2]
[361082320,1747239032423,-500.0,0.0001016,2]
[361082321,1747239032433,-1000.0,0.00010165,2]
[361082322,1747239032443,-178.05,0.00010182,2]
[361082323,1747239032452,-23900.0,0.00010182,2]
[361082324,1747239032462,-1604.19628957,0.00010203,2]
[361082325,1747239032918,-2530.17371043,0.00010203,2]
[361082326,1747239032928,-158.49,0.00010268,2]
[361082327,1747239032938,-193.89361448,0.00010306,2]
[361082328,1747239032948,-181.46920711,0.00010306,2]
[361082329,1747239032958,-231.07,0.00010307,2]
[361082330,1747239032967,-14012.73,0.00010307,2]
[361082331,1747239032976,-376.37,0.00010307,2]
[361082332,1747239032986,-9294.33,0.00010307,2]
[361082333,1747239032995,-6950.82,0.00010307,2]
[361082334,1747239033006,-653.84,0.00010455,2]
[361082335,1747239033016,-231.07,0.00010694,2]
[361082336,1747239033029,-207.4,0.00010731,2]
[361082337,1747239033038,-2500.0,0.00010858,2]
[361082338,1747239033048,-164.71980823,0.000109,2]
[361082339,1747239033059,-151.0,0.00010951,2]
[361082340,1747239033068,-1439.04716418,0.00010951,2]
[361082341,1747239033078,-224.74277637,0.00010951,2]
[361082342,1747239033090,-443.9090812,0.00010951,2]
[361082343,1747239033101,-151.0,0.00010951,2]
[361082344,1747239033110,-151.0,0.00010951,2]
[361082345,1747239033120,-151.0,0.00010951,2]
[361082346,1747239033130,-159.827477,0.00010958,2]
[361082347,1747239033140,-158.19229,0.00010958,2]
[361082348,1747239033149,-1812.2058706,0.00010958,2]
[361082349,1747239033181,-428.03197303,0.00010958,2]
[361082353,1747239037853,-2028.8685551,0.00010958,2]
[361082354,1747239037868,-27959.14459027,0.00010958,2]
[361082355,1747239037880,-400.0,0.00010958,2]
[361082356,1747239037891,-2557.501632,0.00010958,2]
[361082357,1747239037903,-400.0,0.00010958,2]
[361082358,1747239037914,-1049.48,0.00010958,2]
[361082359,1747239037927,-400.0,0.00010958,2]
[361082360,1747239037938,-400.0,0.00010958,2]
[361082361,1747239037950,-305.20290868,0.00010958,2]
[361082362,1747239037961,-400.0,0.00010958,2]
[361082363,1747239037973,-1003.81,0.00010958,2]
[361082364,1747239037984,-400.0,0.00010958,2]
[361082365,1747239037996,-400.0,0.00010958,2]
[361082366,1747239038008,-400.0,0.00010958,2]
[361082367,1747239038020,-594.67,0.00010958,2]
[361082368,1747239038032,-400.0,0.00010958,2]
[361082369,1747239038044,-400.0,0.00010958,2]
[361082370,1747239038057,-400.0,0.00010958,2]
[361082371,1747239038070,-400.0,0.00010958,2]
[361082372,1747239038083,-400.0,0.00010958,2]
[361082373,1747239038097,-420.47,0.00010958,2]
[361082374,1747239038111,-400.0,0.00010958,2]
[361082375,1747239038124,-400.0,0.00010958,2]
[361082377,1747239038136,-400.0,0.00010958,2]
[361082379,1747239038147,-400.0,0.00010958,2]
[361082381,1747239038158,-400.0,0.00010958,2]
[361082383,1747239038170,-914.29,0.00010958,2]
[361082385,1747239038181,-400.0,0.00010958,2]
[361082387,1747239038192,-572.41,0.00010958,2]
[361082389,1747239038203,-542.30688628,0.00010958,2]
[361082391,1747239038215,-517.51645801,0.00010958,2]
[361082393,1747239038226,-400.0,0.00010958,2]
[361082395,1747239038237,-470.0,0.00010958,2]
[361082397,1747239038248,-522.63,0.00010958,2]
[361082399,1747239038259,-400.0,0.00010958,2]
[361082401,1747239038271,-175.05871423,0.00010958,2]
[361082404,1747239038282,-400.0,0.00010958,2]
[361082406,1747239038293,-400.0,0.00010958,2]
[361082408,1747239038307,-400.0,0.00010958,2]
[361082410,1747239038319,-400.0,0.00010958,2]
[361082412,1747239038330,-400.0,0.00010958,2]
[361082414,1747239038342,-400.0,0.00010958,2]
[361082416,1747239038352,-400.0,0.00010958,2]
[361082418,1747239038361,-300.0,0.00010958,2]
[361082420,1747239038371,-400.0,0.00010958,2]
[361082422,1747239038385,-506.34,0.00010958,2]
[361082424,1747239038396,-400.0,0.00010958,2]
[361082426,1747239038406,-764.0,0.00010958,2]
[361082428,1747239038417,-400.0,0.00010958,2]
[361082430,1747239038428,-400.0,0.00010958,2]
[361082432,1747239038438,-400.0,0.00010958,2]
[361082434,1747239038447,-400.0,0.00010958,2]
[361082436,1747239038457,-400.0,0.00010958,2]
[361082438,1747239038466,-400.0,0.00010958,2]
[361082483,1747239038879,-404.32,0.00010958,2]
[361082488,1747239038918,-400.0,0.00010958,2]
[361082490,1747239038932,-680.32,0.00010958,2]
[361082492,1747239038942,-400.0,0.00010958,2]
[361082494,1747239038951,-400.0,0.00010958,2]
[361082496,1747239038961,-237.66,0.00010958,2]
[361082498,1747239038971,-235.26320503,0.00010958,2]
[361082500,1747239038981,-418.05108991,0.00010958,2]
[361082502,1747239038990,-300.49172854,0.00010958,2]
[361082504,1747239039000,-400.0,0.00010958,2]
[361082506,1747239039009,-400.0,0.00010958,2]
[361082508,1747239039018,-400.0,0.00010958,2]
[361082510,1747239039031,-400.0,0.00010958,2]
[361082512,1747239039040,-400.0,0.00010958,2]
[361082514,1747239039050,-200.0,0.00010958,2]
[361082516,1747239039059,-400.0,0.00010958,2]
[361082518,1747239039070,-400.0,0.00010958,2]
[361082520,1747239039079,-400.0,0.00010958,2]
[361082522,1747239039088,-512.52390455,0.00010958,2]
[361082524,1747239039100,-400.0,0.00010958,2]
[361082526,1747239039109,-500.0,0.00010958,2]
[361082528,1747239039118,-400.0,0.00010958,2]
[361082530,1747239039128,-400.0,0.00010958,2]
[361082532,1747239039137,-400.0,0.00010958,2]
[361082534,1747239039147,-400.0,0.00010958,2]
[361082536,1747239039156,-400.0,0.00010958,2]
[361082538,1747239039165,-400.0,0.00010958,2]
[361082539,1747239039176,-400.0,0.00010958,2]
[361082541,1747239039187,-400.0,0.00010958,2]
[361082543,1747239039196,-400.0,0.00010958,2]
[361082545,1747239039206,-350.62658123,0.00010958,2]
[361082548,1747239039216,-400.0,0.00010958,2]
[361082549,1747239039225,-400.0,0.00010958,2]
[361082552,1747239039235,-400.0,0.00010958,2]
[361082553,1747239039245,-400.0,0.00010958,2]
[361082555,1747239039254,-218.32030816,0.00010958,2]
[361082561,1747239039298,-181.67969184,0.00010958,2]
[361082563,1747239039307,-257.080307,0.00010958,2]
[361082567,1747239039340,-142.919693,0.00010958,2]
[361082569,1747239039350,-400.0,0.00010958,2]
[361082571,1747239039359,-76.543246,0.00010958,2]
[361082580,1747239040040,-323.456754,0.00010958,2]
[361082581,1747239040049,-518.52,0.00010958,2]
[361082582,1747239040058,-1315.14,0.00010958,2]
[361082583,1747239040068,-379.4145802,0.00010958,2]
[361082584,1747239040079,-20.5854198,0.00010958,2]
[361082585,1747239040089,-400.0,0.00010958,2]
[361082586,1747239040099,-421.35,0.00010958,2]
[361082587,1747239040109,-400.0,0.00010958,2]
[361082588,1747239040119,-400.0,0.00010958,2]
[361082589,1747239040128,-75.33094992,0.00010958,2]
[361082590,1747239040140,-324.66905008,0.00010958,2]
[361082591,1747239040152,-608.36,0.00010958,2]
[361082592,1747239040162,-671.41806327,0.00010958,2]
[361082593,1747239040174,-67.39193673,0.00010958,2]
[361082594,1747239040183,-400.0,0.00010958,2]
[361082595,1747239040192,-49.85806327,0.00010958,2]
[361082598,1747239040427,-71.49946636,0.00010958,2]
[361082604,1747239040473,-113.10441031,0.00010958,2]
[361082606,1747239040482,-228.44,0.00010958,2]
[361082608,1747239040492,-400.0,0.00010958,2]
[361082609,1747239040502,-400.0,0.00010958,2]
[361082610,1747239040512,-400.0,0.00010958,2]
[361082611,1747239040521,-400.0,0.00010958,2]
[361082612,1747239040531,-477.76,0.00010958,2]
[361082613,1747239040540,-400.0,0.00010958,2]
[361082614,1747239040549,-400.0,0.00010958,2]
[361082615,1747239040559,-437.63,0.00010958,2]
[361082616,1747239040569,-400.0,0.00010958,2]
[361082617,1747239040579,-400.0,0.00010958,2]
[361082618,1747239040588,-400.0,0.00010958,2]
[361082619,1747239040598,-400.0,0.00010958,2]
[361082620,1747239040607,-400.0,0.00010958,2]
[361082621,1747239040617,-400.0,0.00010958,2]
[361082622,1747239040626,-1062.9,0.00010958,2]
[361082623,1747239040636,-400.0,0.00010958,2]
[361082624,1747239040646,-400.0,0.00010958,2]
[361082625,1747239040655,-400.0,0.00010958,2]
[361082626,1747239040665,-400.0,0.00010958,2]
[361082627,1747239040674,-400.0,0.00010958,2]
[361082628,1747239040684,-400.0,0.00010958,2]
[361082629,1747239040694,-400.0,0.00010958,2]
[361082630,1747239040703,-400.0,0.00010958,2]
[361082631,1747239040714,-400.0,0.00010958,2]
[361082632,1747239040723,-415.5,0.00010958,2]
[361082633,1747239040733,-488.33,0.00010958,2]
[361082634,1747239040745,-429.27547567,0.00010958,2]
[361082635,1747239040754,-404.96,0.00010958,2]
[361082636,1747239040764,-400.0,0.00010958,2]
[361082637,1747239040774,-400.0,0.00010958,2]
[361082638,1747239040784,-400.0,0.00010958,2]
[361082639,1747239040793,-250.0,0.00010958,2]
[361082640,1747239040803,-400.0,0.00010958,2]
[361082641,1747239040812,-552.74,0.00010958,2]
[361082642,1747239040822,-400.0,0.00010958,2]
[361082643,1747239040831,-528.76556713,0.00010958,2]
[361082644,1747239040841,-990.99,0.00010958,2]
[361082645,1747239040850,-400.0,0.00010958,2]
[361082646,1747239040860,-678.06,0.00010958,2]
[361082647,1747239040870,-400.0,0.00010958,2]
[361082648,1747239040879,-400.0,0.00010958,2]
[361082649,1747239040888,-400.0,0.00010958,2]
[361082650,1747239040898,-400.0,0.00010958,2]
[361082651,1747239040908,-484.2,0.00010958,2]
[361082652,1747239040917,-400.0,0.00010958,2]
[361082653,1747239040928,-400.0,0.00010958,2]
[361082654,1747239040937,-400.0,0.00010958,2]
[361082655,1747239040947,-400.0,0.00010958,2]
[361082656,1747239040956,-179.61194291,0.00010958,2]
[361082657,1747239040970,-301.34952653,0.00010958,2]
[361082658,1747239040980,-1076.23,0.00010958,2]
[361082659,1747239040990,-567.69,0.00010958,2]
[361082660,1747239040999,-400.0,0.00010958,2]
[361082661,1747239041008,-400.0,0.00010958,2]
[361082662,1747239041018,-400.0,0.00010958,2]
[361082663,1747239041030,-400.0,0.00010958,2]
[361082664,1747239041039,-213.44538836,0.00010958,2]
[361082665,1747239041049,-400.0,0.00010958,2]
[361082666,1747239041058,-400.0,0.00010958,2]
[361082667,1747239041067,-536.65,0.00010958,2]
[361082668,1747239041078,-400.0,0.00010958,2]
[361082669,1747239041087,-400.0,0.00010958,2]
[361082670,1747239041096,-400.0,0.00010958,2]
[361082671,1747239041107,-546.10937618,0.00010958,2]
[361082672,1747239041116,-400.0,0.00010958,2]
[361082673,1747239041126,-400.0,0.00010958,2]